bitfinex/quotes_SOLUSD_20240621
["timestamp","ask_amount","ask_price","bid_price","bid_amount"]
[1718996079087,15.1608,131.92,131.85,2.01007968]
[1718996079283,6.066,131.89,131.85,2.01007968]
[1718996079881,6.0662,131.88,131.85,2.01007968]
[1718996080087,6.065,131.91,131.86,6.0666]
[1718996080894,15.1583,131.95,131.87,6.0662]
[1718996081073,6.0641,131.93,131.85,2.01007968]
[1718996081288,6.0643,131.92,131.87,6.0662]
[1718996082296,15.1548,131.98,131.87,6.6333]
[1718996082505,6.0626,131.96,131.9,15.564]
[1718996082672,165.1516,132.0,131.93,6.0638]
[1718996082874,6.0617,131.98,131.92,6.0642]
[1718996083690,6.0621,131.97,131.92,6.0642]
[1718996084280,6.0617,131.98,131.92,6.0642]
[1718996084894,6.0621,131.97,131.92,6.0642]
[1718996086481,6.0616,131.98,131.93,12.2429]
[1718996088100,6.0616,131.98,131.93,6.1792]
[1718996089004,6.0619,131.97,131.93,6.1792]
[1718996090407,15.1537,131.99,131.93,6.1792]
[1718996090589,6.0633,131.94,131.9,22.2106]
[1718996090783,6.063,131.95,131.9,28.2757]
[1718996091179,6.063,131.95,131.9,22.2106]
[1718996091380,6.063,131.95,131.9,28.2757]
[1718996092404,6.0626,131.96,131.9,28.2757]
[1718996093107,6.0629,131.95,131.9,22.2106]
[1718996093594,6.0629,131.95,131.9,28.2757]
[1718996094104,6.0626,131.96,131.91,6.0646]
[1718996094291,6.0621,131.97,131.92,6.0641]
[1718996096805,6.0621,131.97,131.91,6.0645]
[1718996097015,6.0621,131.97,131.92,6.064]
[1718996099499,6.0627,131.96,131.91,6.0646]
[1718996100013,6.0627,131.96,131.9,28.2755]
[1718996100221,6.0629,131.95,131.9,28.2755]
[1718996100394,6.0625,131.96,131.9,28.2756]
[1718996100591,15.1575,131.95,131.85,8.68666699]
[1718996100803,15.8465,131.98,131.9,6.0647]
[1718996101118,6.0633,131.95,131.89,6.0653]
[1718996101293,15.8465,131.98,131.89,6.0653]
[1718996101294,6.0634,131.94,131.89,6.0653]
[1718996101713,6.0634,131.94,131.88,6.0659]
[1718996101891,6.0644,131.92,131.87,12.6157]
[1718996102138,6.065,131.91,131.87,6.5493]
[1718996102287,6.0652,131.9,131.87,6.5493]
[1718996102790,6.0648,131.91,131.87,6.5493]
[1718996102987,6.0652,131.9,131.87,6.5493]
[1718996103405,21.3927,131.91,131.85,2.01007968]
[1718996103588,20.0,131.9,131.85,2.01007968]
[1718996103792,6.0662,131.88,131.85,2.01007968]
[1718996103987,6.0664,131.88,131.85,2.01007968]
[1718996104186,6.0663,131.88,131.85,2.01007968]
[1718996104618,6.0666,131.87,131.85,2.01007968]
[1718996104801,6.0663,131.88,131.85,2.01007968]
[1718996104996,6.0667,131.87,131.85,2.01007968]
[1718996105387,6.0662,131.88,131.85,2.01007968]
[1718996105803,6.0669,131.87,131.85,2.01007968]
[1718996106201,6.067,131.86,131.85,2.01007968]
[1718996107922,20.0,131.9,131.85,2.01007968]
[1718996108418,6.0662,131.88,131.85,2.01007968]
[1718996110798,6.0666,131.87,131.85,2.01007968]
[1718996111004,6.067,131.86,131.85,2.01007968]
[1718996111206,6.0667,131.87,131.85,2.01007968]
[1718996112427,6.0662,131.88,131.85,2.01007968]
[1718996112726,6.0659,131.89,131.85,2.01007968]
[1718996113097,35.1632,131.9,131.85,2.01007968]
[1718996113303,6.0667,131.87,131.85,2.01007968]
[1718996114421,6.067,131.86,131.85,2.01007968]
[1718996114640,6.0667,131.87,131.85,2.01007968]
[1718996114925,6.067,131.86,131.85,2.01007968]
[1718996116900,26.0656,131.9,131.85,8.07747968]
[1718996117101,26.0656,131.9,131.85,2.01007968]
[1718996117102,6.0659,131.89,131.85,2.01007968]
[1718996117305,20.0,131.9,131.85,2.01007968]
[1718996117502,6.0664,131.88,131.85,2.01007968]
[1718996117737,35.162,131.91,131.85,2.01007968]
[1718996117738,6.0668,131.87,131.85,2.01007968]
[1718996118232,5.5668,131.87,131.85,2.01007968]
[1718996119127,5.5668,131.87,131.85,0.51007968]
[1718996119311,6.067,131.86,131.85,0.51007968]
[1718996119512,6.0681,131.84,131.8,22.4771]
[1718996119924,45.0,131.9,131.8,22.4771]
[1718996120232,6.0676,131.85,131.8,28.5466]
[1718996120727,20.0,131.89,131.8,22.4771]
[1718996121030,6.0675,131.85,131.8,28.5467]
[1718996123328,22.7412,131.95,131.84,29.05]
[1718996123533,20.0,131.94,131.86,22.4342]
[1718996123827,20.0,131.94,131.86,22.8308]
[1718996124210,23.08702489,131.95,131.86,22.8308]
[1718996124536,23.08702489,131.95,131.86,28.8974]
[1718996124537,6.93972489,131.95,131.86,28.8974]
[1718996124703,312.501,131.98,131.86,28.8974]
[1718996124905,20.0,131.96,131.86,28.8974]
[1718996125843,312.501,131.98,131.86,28.8974]
[1718996126137,45.0,131.96,131.86,28.8974]
[1718996126321,45.0,131.96,131.86,22.8308]
[1718996126529,20.0,131.95,131.86,22.8308]
[1718996126729,45.0,131.94,131.86,22.8308]
[1718996128034,45.0,131.94,131.86,16.3672]
[1718996128035,20.0,131.93,131.86,16.3672]
[1718996128915,20.0,131.93,131.84,6.0675]
[1718996129116,20.0,131.93,131.88,6.066]
[1718996129320,20.0,131.96,131.85,6.0673]
[1718996129509,20.0,131.96,131.83,51.1726]
[1718996130116,20.0,131.96,131.83,57.2407]
[1718996130321,45.0,131.95,131.85,6.0673]
[1718996130632,20.0,131.94,131.83,51.1726]
[1718996130817,20.0,131.94,131.83,57.2408]
[1718996131009,20.0,131.94,131.83,51.1726]
[1718996131206,20.0,131.96,131.83,74.0326]
[1718996131411,6.76394115,131.97,131.86,29.05]
[1718996131709,283.451,131.98,131.87,61.448]
[1718996131911,20.0,131.97,131.89,6.0656]
[1718996132133,283.451,131.98,131.89,6.0656]
[1718996132336,283.451,131.98,131.9,6.0651]
[1718996132538,150.0,132.0,131.9,12.1579]
[1718996133044,150.0,132.0,131.91,6.0647]
[1718996133243,150.0,132.0,131.9,12.1578]
[1718996133535,150.0,132.0,131.92,6.0642]
[1718996134110,150.0,132.0,131.91,6.0645]
[1718996134519,150.0,132.0,131.9,6.0928]
[1718996134923,150.0,132.0,131.9,12.1579]
[1718996135112,150.0,132.0,131.9,6.0928]
[1718996135333,65.0,131.99,131.9,6.0928]
[1718996136838,65.0,131.99,131.88,6.0659]
[1718996137411,65.0,131.99,131.87,22.7303]
[1718996137616,29.05,131.97,131.81,29.05]
[1718996137810,29.05,131.97,131.83,6.2823]
[1718996137811,23.0399,131.95,131.83,6.2823]
[1718996138115,94.05,131.94,131.83,6.2823]
[1718996138937,94.05,131.94,131.83,12.3506]
[1718996139711,94.05,131.94,131.83,6.2823]
[1718996140532,94.05,131.94,131.83,12.3503]
[1718996140740,65.0,131.94,131.83,6.2823]
[1718996141139,150.0,132.0,131.87,29.355]
[1718996141338,150.0,132.0,131.89,51.91]
[1718996141647,150.0,132.0,131.92,6.0641]
[1718996142241,150.0,132.0,131.89,29.05]
[1718996143248,150.0,132.0,131.9,38.6001]
[1718996143429,150.0,132.0,131.94,6.0631]
[1718996143628,150.0,132.0,131.9,83.6001]
[1718996143629,150.0,132.0,131.92,22.86]
[1718996143820,150.0,132.0,131.97,6.0616]
[1718996144415,150.0,132.0,131.95,6.0819]
[1718996144621,150.0,132.0,131.97,6.0618]
[1718996145232,150.0,132.0,131.96,6.0623]
[1718996145615,150.0,132.0,131.95,12.1446]
[1718996146232,150.0,132.0,131.96,6.0622]
[1718996146942,150.0,132.0,131.95,28.9419]
[1718996147173,150.0,132.0,131.99,6.061]
[1718996147347,150.0,132.0,131.98,6.0613]
[1718996149843,150.0,132.0,131.97,6.0618]
[1718996150230,150.0,132.0,131.96,6.0622]
[1718996150419,150.0,132.0,131.95,12.1446]
[1718996150616,150.0,132.0,131.95,6.0819]
[1718996151055,150.0,132.0,131.96,6.0621]
[1718996151453,150.0,132.0,131.95,6.0627]
[1718996151750,150.0,132.0,131.93,6.0636]
[1718996151954,150.0,132.0,131.91,6.0646]
[1718996152358,150.0,132.0,131.92,6.0642]
[1718996152550,150.0,132.0,131.9,37.4794]
[1718996152738,150.0,132.0,131.93,6.0636]
[1718996153051,150.0,132.0,131.92,38.0202]
[1718996153255,150.0,132.0,131.9,22.3166]
[1718996153431,150.0,132.0,131.93,6.0635]
[1718996154135,150.0,132.0,131.9,22.3166]
[1718996154342,150.0,132.0,131.85,22.2605]
[1718996154343,20.0,131.99,131.85,22.2605]
[1718996154535,45.0,131.98,131.87,6.0664]
[1718996154740,45.0,131.98,131.86,15.1674]
[1718996154943,20.0,131.99,131.86,38.0274]
[1718996155155,20.0,131.99,131.86,15.1674]
[1718996155353,45.0,131.98,131.88,6.0658]
[1718996155654,20.0,131.99,131.89,6.0656]
[1718996156236,20.0,131.99,131.9,6.0651]
[1718996156656,150.0,132.0,131.9,6.0651]
[1718996156853,45.0,131.99,131.9,6.0651]
[1718996157355,150.0,132.0,131.88,22.86]
[1718996157558,150.0,132.0,131.91,6.0647]
[1718996157931,150.0,132.0,131.9,6.065]
[1718996159058,150.0,132.0,131.96,6.0624]
[1718996159358,150.0,132.0,131.93,44.4378]
[1718996159664,150.0,132.0,131.96,6.0621]
[1718996159962,150.0,132.0,131.95,6.0626]
[1718996160164,150.0,132.0,131.96,6.0624]
[1718996160534,150.0,132.0,131.95,6.0626]
[1718996160746,156.0607,132.0,131.95,6.0626]
[1718996161137,150.0,132.0,131.96,6.0624]
[1718996162250,156.0609,132.0,131.93,22.6808]
[1718996162458,155.5609,132.0,131.94,6.063]
[1718996164545,155.5609,132.0,131.95,6.0628]
[1718996165566,149.5,132.0,131.94,6.0632]
[1718996165863,155.5609,132.0,131.95,6.0627]
[1718996166471,155.5609,132.0,131.93,22.6808]
[1718996166472,6.0627,131.96,131.9,6.2849]
[1718996166678,149.5,132.0,131.9,35.2749]
[1718996166843,6.0618,131.98,131.93,6.0636]
[1718996167541,6.0611,131.99,131.94,6.0631]
[1718996167760,6.061,131.99,131.94,6.0631]
[1718996170462,6.3144,131.99,131.9,28.99]
[1718996170773,6.0622,131.97,131.92,6.0642]
[1718996172073,6.3144,131.99,131.9,28.99]
[1718996172270,6.3144,131.99,131.87,6.3949]
[1718996172471,6.3144,131.99,131.87,21.5604]
[1718996172672,6.0626,131.96,131.91,6.0646]
[1718996172870,6.0629,131.95,131.9,6.065]
[1718996173954,6.0626,131.96,131.91,6.0647]
[1718996174156,6.3144,131.99,131.87,21.5604]
[1718996174157,6.0621,131.97,131.92,6.0642]
[1718996174557,6.3144,131.99,131.89,51.85]
[1718996174863,6.3144,131.99,131.9,67.86]
[1718996175477,6.0616,131.98,131.93,6.0635]
[1718996175659,12.3756,131.99,131.94,6.0633]
[1718996175859,12.3756,131.99,131.91,15.1616]
[1718996175860,6.3144,131.99,131.91,15.1616]
[1718996176061,6.061,131.99,131.94,6.063]
[1718996176663,6.0616,131.98,131.93,6.0636]
[1718996177066,6.0612,131.99,131.94,6.0633]
[1718996177372,171.6312,132.0,131.95,6.0627]
[1718996177970,155.5606,132.0,131.95,6.0627]
[1718996178291,6.061,131.99,131.94,6.0631]
[1718996180365,6.0616,131.98,131.93,6.0637]
[1718996181171,6.062,131.97,131.92,6.064]
[1718996182478,6.0616,131.98,131.93,6.0637]
[1718996183561,149.5,132.0,131.9,45.0]
[1718996183759,6.0622,131.97,131.92,6.0642]
[1718996184367,6.0626,131.96,131.89,44.154]
[1718996184811,6.0626,131.96,131.91,6.0644]
[1718996185169,149.5,132.0,131.91,15.1616]
[1718996185371,6.0621,131.97,131.89,44.1539]
[1718996185581,6.0617,131.98,131.89,44.1539]
[1718996185787,6.0622,131.97,131.92,6.0641]
[1718996185969,6.0622,131.97,131.89,44.1539]
[1718996185970,6.0617,131.98,131.93,6.0637]
[1718996186172,6.0613,131.99,131.91,37.9516]
[1718996186663,6.0613,131.99,131.92,45.0]
[1718996187284,149.5,132.0,131.91,15.1616]
[1718996187483,6.0613,131.99,131.94,6.0631]
[1718996187689,155.5606,132.0,131.95,6.0627]
[1718996187892,149.5,132.0,131.96,6.0624]
[1718996188184,149.5,132.0,131.93,39.1801]
[1718996188397,149.5,132.0,131.94,45.0]
[1718996188566,149.5,132.0,131.96,6.0621]
[1718996188772,149.5,132.0,131.97,6.0617]
[1718996189187,149.5,132.0,131.96,6.0622]
[1718996189873,149.5,132.0,131.97,6.0619]
[1718996190680,149.5,132.0,131.94,45.0]
[1718996190900,149.5,132.0,131.95,6.0627]
[1718996190901,149.0,132.0,131.95,6.0627]
[1718996191186,149.0,132.0,131.96,6.0623]
[1718996193197,149.0,132.0,131.94,6.0629]
[1718996193489,155.0609,132.0,131.95,6.0628]
[1718996193671,155.0609,132.0,131.93,16.3901]
[1718996193672,155.0609,132.0,131.94,6.0631]
[1718996193878,155.0609,132.0,131.95,6.0628]
[1718996195296,6.0611,131.99,131.94,6.0632]
[1718996195874,6.0611,131.99,131.92,35.5243]
[1718996195875,155.0607,132.0,131.95,6.0629]
[1718996197681,149.0,132.0,131.92,35.5243]
[1718996197885,6.0615,131.98,131.93,6.0635]
[1718996198272,6.0612,131.99,131.93,6.0635]
[1718996198478,6.0612,131.99,131.94,6.0633]
[1718996199083,149.0,132.0,131.93,15.1594]
[1718996199473,155.0606,132.0,131.95,6.0626]
[1718996199716,155.0606,132.0,131.95,6.0627]
[1718996200287,155.0606,132.0,131.94,6.0631]
[1718996200288,6.061,131.99,131.94,6.0631]
[1718996206899,155.0608,132.0,131.95,6.0628]
[1718996207077,6.0611,131.99,131.94,6.0631]
[1718996207492,155.0608,132.0,131.95,6.0628]
[1718996208378,149.0,132.0,131.98,6.0611]
[1718996209507,149.0,132.0,131.99,9.66]
[1718996210591,149.0,132.0,131.97,6.0619]
[1718996210802,149.0,132.0,131.99,9.66]
[1718996211381,149.0,132.0,131.96,6.0622]
[1718996211794,149.0,132.0,131.97,6.0619]
[1718996213507,149.0,132.0,131.96,6.0622]
[1718996213706,155.0607,132.0,131.95,6.0627]
[1718996213918,155.0607,132.0,131.91,10.96455816]
[1718996213919,149.0,132.0,131.91,10.96455816]
[1718996214085,6.0613,131.99,131.94,6.0633]
[1718996215706,6.0617,131.98,131.93,6.0638]
[1718996216103,149.0,132.0,131.94,6.0632]
[1718996216482,6.0622,131.97,131.92,6.0638]
[1718996216682,22.2769,131.98,131.9,44.1521]
[1718996217096,28.3387,131.98,131.93,6.0636]
[1718996218208,28.3386,131.98,131.93,6.0636]
[1718996219612,149.0,132.0,131.92,15.1606]
[1718996219813,149.0,132.0,131.96,6.0623]
[1718996219986,155.0607,132.0,131.95,6.0628]
[1718996220316,149.0,132.0,131.91,10.97683575]
[1718996220704,155.0609,132.0,131.95,6.0628]
[1718996221289,149.0,132.0,131.92,38.8752]
[1718996221502,149.0,132.0,131.97,6.0617]
[1718996221704,149.0,132.0,131.98,6.0615]
[1718996222105,149.0,132.0,131.97,6.0618]
[1718996222307,149.0,132.0,131.96,51.78]
[1718996222508,149.0,132.0,131.96,44.1455]
[1718996222714,149.0,132.0,131.98,6.0612]
[1718996222900,149.0,132.0,131.99,6.061]
[1718996223101,149.0,132.0,131.98,6.0613]
[1718996223501,149.0,132.0,131.97,6.0619]
[1718996223815,149.0,132.0,131.98,6.0613]
[1718996224021,149.0,132.0,131.97,6.0618]
[1718996224187,149.0,132.0,131.98,6.0614]
[1718996224393,149.0,132.0,131.98,6.0613]
[1718996224819,149.0,132.0,131.99,6.061]
[1718996228705,145.60342082,132.0,131.99,102.841]
[1718996228900,97.79276555,132.0,131.99,117.9936]
[1718996229112,0.8627372,132.06,132.05,6.0583]
[1718996229312,0.8627372,132.06,132.04,6.0585]
[1718996229733,0.8627372,132.06,132.05,6.0583]
[1718996231329,0.8627372,132.06,132.04,6.0586]
[1718996233620,0.8627372,132.06,131.98,44.8917]
[1718996233825,0.8627372,132.06,132.01,6.0599]
[1718996234125,6.9210372,132.06,132.0,6.0604]
[1718996234330,0.8627372,132.06,132.0,6.0605]
[1718996234628,6.0585,132.05,132.0,6.0605]
[1718996234927,0.8627372,132.06,132.03,6.0589]
[1718996235437,0.8627372,132.06,132.04,6.0587]
[1718996235806,0.8627372,132.06,132.03,6.059]
[1718996236128,0.8627372,132.06,132.02,6.0595]
[1718996236333,6.9206372,132.06,132.01,6.06]
[1718996237030,0.8627372,132.06,132.0,15.1511]
[1718996237405,0.8627372,132.06,132.03,6.0589]
[1718996237725,0.8627372,132.06,132.04,6.0586]
[1718996237904,0.8627372,132.06,132.01,44.1393]
[1718996238100,0.8627372,132.06,132.04,6.0585]
[1718996238323,0.8627372,132.06,132.03,6.059]
[1718996238521,0.8627372,132.06,132.04,6.0587]
[1718996239630,0.8627372,132.06,132.05,6.0583]
[1718996240318,28.99,132.17,132.05,6.0583]
[1718996240319,6.2575,132.13,132.05,67.79]
[1718996240528,6.2575,132.13,132.06,67.79]
[1718996240714,6.2575,132.13,132.06,82.9336]
[1718996240913,6.2575,132.13,132.09,6.0562]
[1718996241128,6.2575,132.13,132.08,6.0567]
[1718996241129,12.3122,132.13,132.08,6.0567]
[1718996241332,12.3122,132.13,132.07,6.0571]
[1718996241509,15.8844,132.15,132.09,6.056]
[1718996241510,21.9383,132.15,132.09,6.056]
[1718996241711,21.9383,132.15,132.06,15.1442]
[1718996241712,15.8844,132.15,132.06,15.1442]
[1718996242234,15.8844,132.15,132.04,44.8384]
[1718996242539,6.0544,132.14,132.08,6.0564]
[1718996242836,6.0547,132.13,132.08,6.0564]
[1718996243416,15.8844,132.15,132.05,102.9346]
[1718996243417,6.0551,132.12,132.07,6.0572]
[1718996243622,15.8844,132.15,132.05,15.1446]
[1718996243816,6.0551,132.12,132.07,6.0572]
[1718996244021,15.8844,132.15,132.05,15.1446]
[1718996244224,6.0547,132.13,132.08,6.0566]
[1718996244406,15.8844,132.15,132.07,22.79]
[1718996244736,15.8844,132.15,132.11,6.0551]
[1718996245059,15.8844,132.15,132.07,28.99]
[1718996245205,15.8844,132.15,132.05,15.1446]
[1718996245407,15.8844,132.15,132.1,6.0557]
[1718996245634,15.8844,132.15,132.1,6.0559]
[1718996245828,21.9382,132.15,132.1,6.0559]
[1718996246033,21.9382,132.15,132.09,6.0563]
[1718996246341,6.0543,132.14,132.06,73.99]
[1718996247042,15.8844,132.15,132.06,73.99]
[1718996247043,21.9382,132.15,132.09,6.0562]
[1718996247355,6.0546,132.13,132.08,6.0568]
[1718996247548,6.0546,132.13,132.07,6.0572]
[1718996247715,6.0542,132.14,132.08,6.0569]
[1718996247915,21.9382,132.15,132.09,6.0563]
[1718996248150,6.0541,132.14,132.09,6.0563]
[1718996248442,21.9381,132.15,132.06,28.99]
[1718996248660,6.0542,132.14,132.09,6.0561]
[1718996249731,6.0542,132.14,132.08,6.0567]
[1718996249923,21.9382,132.15,132.09,6.0562]
[1718996250755,21.9382,132.15,132.06,28.99]
[1718996250952,21.9382,132.15,132.09,6.0561]
[1718996251831,15.8844,132.15,132.1,6.056]
[1718996252718,15.8844,132.15,132.11,6.0555]
[1718996253062,15.8844,132.15,132.12,6.0547]
[1718996253234,15.8844,132.15,132.11,6.0553]
[1718996253433,6.0533,132.16,132.11,6.0553]
[1718996254534,12.3701,132.17,132.11,6.0553]
[1718996254932,12.3701,132.17,132.12,6.055]
[1718996255426,12.3701,132.17,132.11,6.0554]
[1718996257026,6.3172,132.17,132.11,6.0554]
[1718996257942,6.0534,132.16,132.11,6.0554]
[1718996258133,6.3172,132.17,132.08,6.0565]
[1718996258338,6.0548,132.13,132.08,6.0568]
[1718996258538,6.3172,132.17,132.07,6.0572]
[1718996258735,15.4425,132.16,132.02,15.8844]
[1718996258952,15.4425,132.14,132.01,43.38241911]
[1718996259250,6.0565,132.09,132.04,6.0584]
[1718996259551,15.4425,132.14,132.05,6.0582]
[1718996259855,15.4425,132.14,132.07,22.79]
[1718996260040,15.4425,132.14,132.1,6.0555]
[1718996260237,15.4425,132.14,132.11,6.0555]
[1718996260552,6.1274,132.15,132.11,6.0555]
[1718996260941,6.1274,132.15,132.12,6.055]
[1718996261827,6.1274,132.15,132.11,6.0553]
[1718996262247,6.1274,132.15,132.12,6.055]
[1718996263356,6.1274,132.15,132.08,15.1413]
[1718996263952,6.1274,132.15,132.11,6.0554]
[1718996264154,6.1274,132.15,132.06,51.78]
[1718996264366,6.1274,132.15,132.1,15.1391]
[1718996264733,6.1274,132.15,132.12,6.0549]
[1718996265835,6.1274,132.15,132.11,6.0553]
[1718996266539,6.1274,132.15,132.08,15.142]
[1718996266848,6.1274,132.15,132.11,6.0555]
[1718996267048,12.1814,132.15,132.1,6.0559]
[1718996267230,6.1274,132.15,132.11,6.0554]
[1718996268563,6.1274,132.15,132.12,6.055]
[1718996268761,6.1274,132.15,132.13,6.0545]
[1718996269261,6.1274,132.15,132.12,6.0548]
[1718996269772,15.5496,132.22,132.13,73.99]
[1718996269932,15.5496,132.24,132.15,15.1342]
[1718996270354,6.0514,132.2,132.15,6.0534]
[1718996270556,15.5496,132.24,132.15,6.0534]
[1718996270760,15.5496,132.24,132.15,6.0533]
[1718996270761,6.0512,132.21,132.15,6.0533]
[1718996270949,6.0506,132.22,132.16,6.0529]
[1718996271156,15.5496,132.24,132.16,6.0529]
[1718996271375,6.051,132.21,132.16,6.0529]
[1718996271578,15.5496,132.24,132.13,45.0]
[1718996271871,6.9150372,132.19,132.14,6.0538]
[1718996273760,0.8627372,132.19,132.14,6.0538]
[1718996273962,0.8627372,132.19,132.14,15.135]
[1718996274169,6.9146372,132.19,132.14,6.0539]
[1718996274372,0.8627372,132.19,132.15,6.0535]
[1718996274558,6.9146372,132.19,132.14,6.054]
[1718996274800,0.8627372,132.19,132.14,6.054]
[1718996275096,6.9146372,132.19,132.14,6.054]
[1718996275257,0.8627372,132.19,132.1,66.8164]
[1718996275470,0.8627372,132.19,132.13,6.0542]
[1718996275789,0.8627372,132.19,132.1,21.3977]
[1718996275955,6.0526,132.18,132.12,6.0548]
[1718996276158,6.0535,132.16,132.11,6.0553]
[1718996276353,15.3828,132.18,132.09,28.99]
[1718996276573,6.0531,132.17,132.12,6.0549]
[1718996277380,15.3828,132.18,132.1,6.0555]
[1718996277764,15.3828,132.18,132.09,51.78]
[1718996277957,6.0533,132.16,132.11,6.0554]
[1718996278166,6.0529,132.17,132.12,6.055]
[1718996279677,6.0547,132.13,132.08,6.0565]
[1718996279859,6.0548,132.13,132.08,6.0569]
[1718996280477,6.0543,132.14,132.09,6.0564]
[1718996280681,6.4257,132.17,132.07,6.0573]
[1718996280682,6.0552,132.12,132.07,6.0573]
[1718996280983,6.4257,132.17,132.06,28.99]
[1718996280984,6.0548,132.13,132.08,6.0568]
[1718996281167,6.0543,132.14,132.09,6.0564]
[1718996281362,6.4257,132.17,132.06,28.99]
[1718996281571,6.4257,132.17,132.07,15.1432]
[1718996281789,6.054,132.15,132.1,6.056]
[1718996281957,6.0534,132.16,132.11,6.0555]
[1718996282300,12.4786,132.17,132.12,6.055]
[1718996282467,6.0534,132.16,132.11,6.0554]
[1718996282666,6.4257,132.17,132.12,6.0549]
[1718996282869,12.4786,132.17,132.12,6.0549]
[1718996283062,12.4786,132.17,132.09,51.78]
[1718996283063,6.0538,132.15,132.1,6.0558]
[1718996283467,6.0534,132.16,132.11,6.0554]
[1718996283670,6.4257,132.17,132.09,28.99]
[1718996283858,6.054,132.15,132.1,6.0559]
[1718996284066,6.4257,132.17,132.09,28.99]
[1718996284377,6.4257,132.17,132.11,6.0555]
[1718996284591,6.4257,132.17,132.09,28.99]
[1718996284771,6.0538,132.15,132.1,6.0557]
[1718996285378,6.0547,132.13,132.08,6.0568]
[1718996286595,6.4257,132.17,132.1,6.0557]
[1718996286895,6.0544,132.14,132.09,6.0563]
[1718996287582,6.4257,132.17,132.1,6.0556]
[1718996287895,6.0539,132.15,132.1,6.0556]
[1718996288397,6.4257,132.17,132.13,6.0543]
[1718996288565,15.3828,132.18,132.07,10.97445901]
[1718996288766,15.3828,132.18,132.09,28.99]
[1718996288966,15.3828,132.18,132.12,15.1366]
[1718996289173,15.3828,132.18,132.14,6.0538]
[1718996289578,21.4352,132.18,132.13,6.0544]
[1718996289888,15.3828,132.18,132.1,15.6408]
[1718996290188,6.0534,132.16,132.11,6.0552]
[1718996290571,6.053,132.17,132.12,6.055]
[1718996292189,21.4353,132.18,132.14,6.0541]
[1718996292387,15.3828,132.18,132.14,6.0541]
[1718996292708,6.9146372,132.19,132.12,22.79]
[1718996292709,0.8627372,132.19,132.12,22.79]
[1718996292863,0.8627372,132.19,132.17,6.0525]
[1718996293066,0.8627372,132.19,132.14,37.9245]
[1718996293297,0.8627372,132.19,132.16,6.0531]
[1718996293668,0.8627372,132.19,132.15,6.0535]
[1718996293869,0.8627372,132.19,132.15,6.0537]
[1718996294103,6.9280372,132.19,132.11,22.79]
[1718996294271,6.0531,132.17,132.12,6.0548]
[1718996294669,6.9280372,132.19,132.11,22.79]
[1718996294881,12.9800372,132.19,132.14,6.0539]
[1718996295290,6.9280372,132.19,132.14,6.0539]
[1718996295693,12.9798372,132.19,132.14,6.0539]
[1718996295892,0.8627372,132.19,132.15,6.0533]
[1718996296098,0.8627372,132.19,132.16,6.0532]
[1718996296400,0.8627372,132.19,132.15,6.0536]
[1718996297177,0.8627372,132.19,132.16,6.053]
[1718996297381,6.9148372,132.19,132.14,6.0541]
[1718996298187,0.8627372,132.19,132.15,6.0536]
[1718996299193,0.8627372,132.19,132.14,6.0539]
[1718996299400,6.9147372,132.19,132.14,6.0539]
[1718996299611,0.8627372,132.19,132.15,6.0536]